[Event "Titled Tuesday Blitz April 4 Early 2023"]
[White "Ehlvest, Jaan"]
[Black "Cherniaiev, Tykhon"]
[WhiteFideId "4500016"]
[BlackFideId "14182360"]
[WhiteElo "2442"]
[BlackElo "2450"]
[Result "1/2-1/2"]
[Round "07"]
[TimeControl "180+2"]
[Date "2023.04.04"]
[WhiteClock "0:00:09"]
[BlackClock "0:00:06"]

1. e4 {[%clk 0:02:54]}  e5 {[%clk 0:02:59]} 2. Nf3 {[%clk 0:02:53]}  Nc6 {[%clk 0:02:59]} 3. Bb5 {[%clk 0:02:53]}  Nf6 {[%clk 0:03:00]} 4. O-O {[%clk 0:02:51]}  Nxe4 {[%clk 0:03:00]} 5. Re1 {[%clk 0:02:50]}  Nd6 {[%clk 0:02:59]} 6. a4 {[%clk 0:02:50]}  Be7 {[%clk 0:02:57]} 7. Nc3 {[%clk 0:02:50]}  O-O {[%clk 0:02:56]} 8. d4 {[%clk 0:02:50]}  a6 {[%clk 0:02:46]} 9. Bf1 {[%clk 0:02:25]}  e4 {[%clk 0:02:40]} 10. Nxe4 {[%clk 0:02:24]}  Nxe4 {[%clk 0:02:41]} 11. Rxe4 {[%clk 0:02:24]}  d5 {[%clk 0:02:42]} 12. Re1 {[%clk 0:02:21]}  Bf6 {[%clk 0:02:37]} 13. c3 {[%clk 0:02:20]}  Be6 {[%clk 0:02:34]} 14. Bf4 {[%clk 0:02:16]}  Re8 {[%clk 0:02:32]} 15. a5 {[%clk 0:02:15]}  Qd7 {[%clk 0:02:29]} 16. Qd2 {[%clk 0:02:12]}  Bf5 {[%clk 0:02:26]} 17. Ne5 {[%clk 0:02:01]}  Nxe5 {[%clk 0:02:10]} 18. dxe5 {[%clk 0:01:58]}  Be7 {[%clk 0:02:10]} 19. Rad1 {[%clk 0:01:50]}  Rad8 {[%clk 0:02:08]} 20. Be3 {[%clk 0:01:48]}  c5 {[%clk 0:02:00]} 21. f4 {[%clk 0:01:45]}  Qc7 {[%clk 0:01:20]} 22. b4 {[%clk 0:01:31]}  Rd7 {[%clk 0:00:45]} 23. h3 {[%clk 0:01:21]}  d4 {[%clk 0:00:37]} 24. cxd4 {[%clk 0:01:15]}  cxd4 {[%clk 0:00:38]} 25. Bf2 {[%clk 0:00:57]}  Red8 {[%clk 0:00:35]} 26. Rc1 {[%clk 0:00:52]}  Qb8 {[%clk 0:00:33]} 27. g4 {[%clk 0:00:51]}  Be6 {[%clk 0:00:32]} 28. Bd3 {[%clk 0:00:44]}  Bd5 {[%clk 0:00:25]} 29. f5 {[%clk 0:00:42]}  Bf8 {[%clk 0:00:15]} 30. Bg3 {[%clk 0:00:36]}  Re8 {[%clk 0:00:14]} 31. Kh2 {[%clk 0:00:36]}  Qd8 {[%clk 0:00:09]} 32. Rf1 {[%clk 0:00:30]}  Bc6 {[%clk 0:00:09]} 33. Qf2 {[%clk 0:00:26]}  Rd5 {[%clk 0:00:07]} 34. Rce1 {[%clk 0:00:25]}  Bxb4 {[%clk 0:00:07]} 35. Re2 {[%clk 0:00:25]}  Bxa5 {[%clk 0:00:06]} 36. e6 {[%clk 0:00:25]}  f6 {[%clk 0:00:05]} 37. Rc2 {[%clk 0:00:21]}  Bc7 {[%clk 0:00:05]} 38. g5 {[%clk 0:00:20]}  Bxg3+ {[%clk 0:00:05]} 39. Qxg3 {[%clk 0:00:20]}  Qd6 {[%clk 0:00:05]} 40. gxf6 {[%clk 0:00:20]}  Qxg3+ {[%clk 0:00:05]} 41. Kxg3 {[%clk 0:00:21]}  gxf6 {[%clk 0:00:06]} 42. Kf4 {[%clk 0:00:21]}  Re5 {[%clk 0:00:05]} 43. Rg1+ {[%clk 0:00:17]}  Kf8 {[%clk 0:00:05]} 44. Rg4 {[%clk 0:00:11]}  Re3 {[%clk 0:00:05]} 45. Rg3 {[%clk 0:00:07]}  Rxg3 {[%clk 0:00:05]} 46. Kxg3 {[%clk 0:00:07]}  Ke7 {[%clk 0:00:05]} 47. Kf4 {[%clk 0:00:07]}  Rd8 {[%clk 0:00:05]} 48. Be4 {[%clk 0:00:08]}  Bxe4 {[%clk 0:00:04]} 49. Kxe4 {[%clk 0:00:07]}  d3 {[%clk 0:00:03]} 50. Rd2 {[%clk 0:00:07]}  b5 {[%clk 0:00:03]} 51. Rxd3 {[%clk 0:00:08]}  Rxd3 {[%clk 0:00:03]} 52. Kxd3 {[%clk 0:00:08]}  a5 {[%clk 0:00:04]} 53. Kd4 {[%clk 0:00:08]}  a4 {[%clk 0:00:03]} 54. Kc3 {[%clk 0:00:08]}  a3 {[%clk 0:00:04]} 55. Kb3 {[%clk 0:00:09]}  b4 {[%clk 0:00:04]} 56. h4 {[%clk 0:00:09]}  h5 {[%clk 0:00:04]} 57. Ka2 {[%clk 0:00:08]}  Kd6 {[%clk 0:00:05]} 58. Kb3 {[%clk 0:00:08]}  Ke7 {[%clk 0:00:05]} 59. Ka2 {[%clk 0:00:09]}  Kd6 {[%clk 0:00:06]} 60. Kb3 {[%clk 0:00:09]}  Ke7 {[%clk 0:00:06]} 1/2-1/2


[Site "https://www.chess.com"]

[Event "Titled Tuesday Blitz April 4 Early 2023"]
[White "Gabdrakhmanov, Azat"]
[Black "Oleksiyenko, Mykhaylo"]
[WhiteFideId "34189197"]
[BlackFideId "4152417"]
[WhiteElo "2306"]
[BlackElo "2551"]
[Result "1-0"]
[Round "07"]
[TimeControl "180+2"]
[Date "2023.04.04"]
[WhiteClock "0:00:04"]
[BlackClock "0:00:03"]

1. e4 {[%clk 0:03:00]}  c5 {[%clk 0:02:59]} 2. Nf3 {[%clk 0:03:01]}  Nc6 {[%clk 0:03:00]} 3. d4 {[%clk 0:03:01]}  cxd4 {[%clk 0:03:01]} 4. Nxd4 {[%clk 0:03:02]}  e5 {[%clk 0:03:01]} 5. Nb5 {[%clk 0:03:01]}  d6 {[%clk 0:03:01]} 6. N1c3 {[%clk 0:03:00]}  a6 {[%clk 0:03:00]} 7. Na3 {[%clk 0:02:58]}  Be6 {[%clk 0:03:01]} 8. Be2 {[%clk 0:02:54]}  b5 {[%clk 0:02:57]} 9. Nd5 {[%clk 0:02:52]}  Be7 {[%clk 0:02:54]} 10. c4 {[%clk 0:02:49]}  b4 {[%clk 0:02:49]} 11. Nc2 {[%clk 0:02:44]}  a5 {[%clk 0:02:36]} 12. O-O {[%clk 0:02:41]}  Nf6 {[%clk 0:02:35]} 13. Qd3 {[%clk 0:02:32]}  O-O {[%clk 0:02:26]} 14. Be3 {[%clk 0:02:31]}  Rb8 {[%clk 0:01:35]} 15. Rfd1 {[%clk 0:02:14]}  Rc8 {[%clk 0:01:08]} 16. f3 {[%clk 0:02:08]}  Bxd5 {[%clk 0:01:07]} 17. cxd5 {[%clk 0:02:03]}  Nb8 {[%clk 0:01:08]} 18. Rdc1 {[%clk 0:01:51]}  Nh5 {[%clk 0:01:07]} 19. a3 {[%clk 0:01:49]}  Nf4 {[%clk 0:01:01]} 20. Bxf4 {[%clk 0:01:44]}  exf4 {[%clk 0:01:02]} 21. axb4 {[%clk 0:01:44]}  axb4 {[%clk 0:01:02]} 22. Kh1 {[%clk 0:01:27]}  Qb6 {[%clk 0:01:00]} 23. Qb5 {[%clk 0:01:06]}  Qxb5 {[%clk 0:00:39]} 24. Bxb5 {[%clk 0:01:06]}  Rc5 {[%clk 0:00:39]} 25. Nd4 {[%clk 0:00:56]}  Bf6 {[%clk 0:00:37]} 26. Rxc5 {[%clk 0:00:45]}  dxc5 {[%clk 0:00:38]} 27. Nb3 {[%clk 0:00:44]}  Bxb2 {[%clk 0:00:33]} 28. Rb1 {[%clk 0:00:42]}  Ba3 {[%clk 0:00:28]} 29. Nxc5 {[%clk 0:00:37]}  Rc8 {[%clk 0:00:27]} 30. Nd3 {[%clk 0:00:33]}  Rc3 {[%clk 0:00:19]} 31. h4 {[%clk 0:00:23]}  b3 {[%clk 0:00:19]} 32. e5 {[%clk 0:00:10]}  b2 {[%clk 0:00:17]} 33. Nxb2 {[%clk 0:00:07]}  Rb3 {[%clk 0:00:16]} 34. Rc1 {[%clk 0:00:08]}  Rxb5 {[%clk 0:00:12]} 35. Rc8+ {[%clk 0:00:07]}  Bf8 {[%clk 0:00:13]} 36. Nc4 {[%clk 0:00:08]}  Rxd5 {[%clk 0:00:13]} 37. Rxb8 {[%clk 0:00:07]}  Rc5 {[%clk 0:00:11]} 38. Nd6 {[%clk 0:00:05]}  Rxe5 {[%clk 0:00:12]} 39. Ne4 {[%clk 0:00:06]}  f6 {[%clk 0:00:11]} 40. Kh2 {[%clk 0:00:06]}  Kf7 {[%clk 0:00:11]} 41. Kh3 {[%clk 0:00:06]}  Be7 {[%clk 0:00:11]} 42. Rb7 {[%clk 0:00:06]}  Kg6 {[%clk 0:00:10]} 43. Kg4 {[%clk 0:00:06]}  f5+ {[%clk 0:00:06]} 44. Kxf4 {[%clk 0:00:07]}  Re6 {[%clk 0:00:04]} 45. h5+ {[%clk 0:00:05]}  Kxh5 {[%clk 0:00:03]} 46. Kxf5 {[%clk 0:00:05]}  Rf6+ {[%clk 0:00:02]} 47. Nxf6+ {[%clk 0:00:05]}  Bxf6 {[%clk 0:00:03]} 48. g4+ {[%clk 0:00:05]}  Kh6 {[%clk 0:00:03]} 49. f4 {[%clk 0:00:04]} 1-0


[Site "https://www.chess.com"]

[Event "Titled Tuesday Blitz April 4 Early 2023"]
[White "Mendez Fortes, Eduardo Jesus"]
[Black "Levitskiy, Andrey"]
[WhiteFideId "3502376"]
[BlackFideId "14132885"]
[WhiteElo "2307"]
[BlackElo "2341"]
[Result "0-1"]
[Round "07"]
[TimeControl "180+2"]
[Date "2023.04.04"]
[WhiteClock "0:00:04"]
[BlackClock "0:00:07"]

1. e4 {[%clk 0:03:00]}  e6 {[%clk 0:02:59]} 2. d4 {[%clk 0:03:00]}  d5 {[%clk 0:03:00]} 3. Nd2 {[%clk 0:02:57]}  c5 {[%clk 0:02:59]} 4. exd5 {[%clk 0:02:57]}  Qxd5 {[%clk 0:03:00]} 5. Ngf3 {[%clk 0:02:58]}  cxd4 {[%clk 0:03:01]} 6. Bc4 {[%clk 0:02:58]}  Qd6 {[%clk 0:03:01]} 7. O-O {[%clk 0:02:59]}  Nf6 {[%clk 0:03:02]} 8. Nb3 {[%clk 0:03:00]}  Nc6 {[%clk 0:03:03]} 9. Nbxd4 {[%clk 0:03:00]}  Nxd4 {[%clk 0:03:03]} 10. Nxd4 {[%clk 0:03:01]}  a6 {[%clk 0:03:04]} 11. Re1 {[%clk 0:03:00]}  Qc7 {[%clk 0:03:04]} 12. Qe2 {[%clk 0:03:00]}  h6 {[%clk 0:02:59]} 13. c3 {[%clk 0:02:53]}  Bd7 {[%clk 0:02:47]} 14. Be3 {[%clk 0:02:49]}  Bd6 {[%clk 0:02:46]} 15. h3 {[%clk 0:02:49]}  O-O {[%clk 0:02:46]} 16. Rad1 {[%clk 0:02:45]}  Rad8 {[%clk 0:02:43]} 17. Bb3 {[%clk 0:02:43]}  Rfe8 {[%clk 0:02:29]} 18. Nf3 {[%clk 0:02:12]}  Bb5 {[%clk 0:02:20]} 19. Qc2 {[%clk 0:02:06]}  Bc6 {[%clk 0:02:16]} 20. Nd4 {[%clk 0:02:03]}  Be4 {[%clk 0:02:10]} 21. Qc1 {[%clk 0:02:03]}  b5 {[%clk 0:01:48]} 22. Bc2 {[%clk 0:01:59]}  Bxc2 {[%clk 0:01:39]} 23. Qxc2 {[%clk 0:02:00]}  Bh2+ {[%clk 0:01:35]} 24. Kh1 {[%clk 0:01:59]}  Bf4 {[%clk 0:01:35]} 25. Bxf4 {[%clk 0:01:49]}  Qxf4 {[%clk 0:01:36]} 26. Qe2 {[%clk 0:01:44]}  Rd5 {[%clk 0:01:30]} 27. Nf3 {[%clk 0:01:34]}  Red8 {[%clk 0:01:25]} 28. Rd4 {[%clk 0:01:29]}  Rxd4 {[%clk 0:01:23]} 29. Nxd4 {[%clk 0:01:30]}  Rd5 {[%clk 0:01:14]} 30. a4 {[%clk 0:01:25]}  e5 {[%clk 0:01:04]} 31. Nc6 {[%clk 0:01:21]}  Rd2 {[%clk 0:00:48]} 32. Qxe5 {[%clk 0:00:54]}  Qxf2 {[%clk 0:00:45]} 33. Rg1 {[%clk 0:00:50]}  bxa4 {[%clk 0:00:42]} 34. Nb4 {[%clk 0:00:42]}  Rxb2 {[%clk 0:00:30]} 35. Nd3 {[%clk 0:00:41]}  Qe2 {[%clk 0:00:30]} 36. Qf5 {[%clk 0:00:27]}  Rd2 {[%clk 0:00:14]} 37. Qc8+ {[%clk 0:00:24]}  Kh7 {[%clk 0:00:13]} 38. Qf5+ {[%clk 0:00:24]}  Kg8 {[%clk 0:00:14]} 39. Qc8+ {[%clk 0:00:24]}  Qe8 {[%clk 0:00:14]} 40. Qxa6 {[%clk 0:00:20]}  Ne4 {[%clk 0:00:10]} 41. Rb1 {[%clk 0:00:05]}  Rxd3 {[%clk 0:00:07]} 42. Qa7 {[%clk 0:00:05]}  Rd7 {[%clk 0:00:05]} 43. Qa5 {[%clk 0:00:04]}  Rd8 {[%clk 0:00:05]} 44. Kg1 {[%clk 0:00:04]}  Nf6 {[%clk 0:00:05]} 45. Rf1 {[%clk 0:00:04]}  Ra8 {[%clk 0:00:05]} 46. Qb4 {[%clk 0:00:04]}  a3 {[%clk 0:00:06]} 47. Ra1 {[%clk 0:00:04]}  a2 {[%clk 0:00:06]} 48. Kh1 {[%clk 0:00:04]}  Qa4 {[%clk 0:00:06]} 49. Qb2 {[%clk 0:00:04]}  Ne4 {[%clk 0:00:06]} 50. Kg1 {[%clk 0:00:03]}  Qa3 {[%clk 0:00:06]} 51. Qc2 {[%clk 0:00:03]}  Qxc3 {[%clk 0:00:06]} 52. Qxe4 {[%clk 0:00:04]}  Qxa1+ {[%clk 0:00:06]} 53. Kh2 {[%clk 0:00:05]}  Rf8 {[%clk 0:00:06]} 54. Qa4 {[%clk 0:00:04]}  Qb1 {[%clk 0:00:07]} 0-1


[Site "https://www.chess.com"]

[Event "Titled Tuesday Blitz April 4 Early 2023"]
[White "Domingo Nunez, Ruben"]
[Black "Orlov, Georgi"]
[WhiteFideId "22245570"]
[BlackFideId "2011271"]
[WhiteElo "2404"]
[BlackElo "2569"]
[Result "0-1"]
[Round "07"]
[TimeControl "180+2"]
[Date "2023.04.04"]
[WhiteClock "0:00:03"]
[BlackClock "0:00:56"]

1. c4 {[%clk 0:02:56]}  Nf6 {[%clk 0:02:58]} 2. Nc3 {[%clk 0:02:52]}  Nc6 {[%clk 0:02:58]} 3. e4 {[%clk 0:02:51]}  e5 {[%clk 0:02:58]} 4. Nf3 {[%clk 0:02:51]}  Bb4 {[%clk 0:02:50]} 5. d3 {[%clk 0:02:47]}  Bxc3+ {[%clk 0:02:46]} 6. bxc3 {[%clk 0:02:48]}  d6 {[%clk 0:02:43]} 7. h3 {[%clk 0:02:48]}  O-O {[%clk 0:02:43]} 8. Be2 {[%clk 0:02:46]}  a6 {[%clk 0:02:42]} 9. O-O {[%clk 0:02:46]}  b5 {[%clk 0:02:41]} 10. cxb5 {[%clk 0:02:36]}  axb5 {[%clk 0:02:41]} 11. Re1 {[%clk 0:02:29]}  Be6 {[%clk 0:02:34]} 12. d4 {[%clk 0:02:28]}  Nxe4 {[%clk 0:02:22]} 13. Qc2 {[%clk 0:01:37]}  f5 {[%clk 0:02:21]} 14. Bxb5 {[%clk 0:01:35]}  Na5 {[%clk 0:02:21]} 15. dxe5 {[%clk 0:01:29]}  Nb3 {[%clk 0:02:16]} 16. axb3 {[%clk 0:00:48]}  Rxa1 {[%clk 0:02:15]} 17. Nd4 {[%clk 0:00:49]}  Bc8 {[%clk 0:01:59]} 18. Nc6 {[%clk 0:00:30]}  Qh4 {[%clk 0:01:55]} 19. Rf1 {[%clk 0:00:18]}  dxe5 {[%clk 0:01:49]} 20. Nxe5 {[%clk 0:00:16]}  Be6 {[%clk 0:01:48]} 21. c4 {[%clk 0:00:11]}  Rfa8 {[%clk 0:01:41]} 22. Bb2 {[%clk 0:00:08]}  Rxf1+ {[%clk 0:01:40]} 23. Kxf1 {[%clk 0:00:08]}  Qf4 {[%clk 0:01:35]} 24. Nd3 {[%clk 0:00:07]}  Qh2 {[%clk 0:01:29]} 25. Ne1 {[%clk 0:00:07]}  Qf4 {[%clk 0:01:23]} 26. Bc6 {[%clk 0:00:06]}  Rd8 {[%clk 0:01:21]} 27. Nf3 {[%clk 0:00:04]}  Rd2 {[%clk 0:01:16]} 28. Bxe4 {[%clk 0:00:04]}  Rxc2 {[%clk 0:01:16]} 29. Bxc2 {[%clk 0:00:05]}  Qd6 {[%clk 0:01:13]} 30. Ke2 {[%clk 0:00:05]}  h6 {[%clk 0:01:11]} 31. Be5 {[%clk 0:00:06]}  Qc5 {[%clk 0:01:10]} 32. Bd4 {[%clk 0:00:06]}  Qa3 {[%clk 0:01:10]} 33. Ne5 {[%clk 0:00:06]}  f4 {[%clk 0:01:04]} 34. f3 {[%clk 0:00:02]}  Qa2 {[%clk 0:01:03]} 35. Kd2 {[%clk 0:00:02]}  Bf5 {[%clk 0:01:02]} 36. Nd3 {[%clk 0:00:01]}  g5 {[%clk 0:00:59]} 37. Be5 {[%clk 0:00:01]}  c6 {[%clk 0:00:58]} 38. Bd4 {[%clk 0:00:02]}  Qa5+ {[%clk 0:00:57]} 39. Bc3 {[%clk 0:00:02]}  Qd8 {[%clk 0:00:57]} 40. Ke2 {[%clk 0:00:02]}  Qe7+ {[%clk 0:00:56]} 41. Kd2 {[%clk 0:00:03]}  Qe3+ {[%clk 0:00:56]} 42. Kd1 {[%clk 0:00:03]}  Bxd3 {[%clk 0:00:56]} 0-1


[Site "https://www.chess.com"]

[Event "Titled Tuesday Blitz April 4 Early 2023"]
[White "Mortazavi, Ali"]
[Black "Gold_Ocean"]
[WhiteFideId "401323"]
[WhiteElo "2339"]
[BlackElo "2652"]
[Result "1-0"]
[Round "07"]
[TimeControl "180+2"]
[Date "2023.04.04"]
[WhiteClock "0:01:31"]
[BlackClock "0:01:07"]

1. Nf3 {[%clk 0:03:00]}  d5 {[%clk 0:02:59]} 2. g3 {[%clk 0:03:01]}  Nd7 {[%clk 0:02:58]} 3. Bg2 {[%clk 0:03:01]}  e5 {[%clk 0:02:57]} 4. d3 {[%clk 0:03:02]}  Ngf6 {[%clk 0:02:58]} 5. O-O {[%clk 0:03:03]}  Be7 {[%clk 0:02:58]} 6. Nc3 {[%clk 0:03:03]}  d4 {[%clk 0:02:55]} 7. Nb1 {[%clk 0:02:56]}  O-O {[%clk 0:02:55]} 8. c3 {[%clk 0:02:54]}  c5 {[%clk 0:02:55]} 9. Nbd2 {[%clk 0:02:53]}  Rb8 {[%clk 0:02:50]} 10. a4 {[%clk 0:02:52]}  a6 {[%clk 0:02:48]} 11. Nc4 {[%clk 0:02:51]}  b5 {[%clk 0:02:35]} 12. axb5 {[%clk 0:02:49]}  axb5 {[%clk 0:02:33]} 13. Ncxe5 {[%clk 0:02:47]}  Nxe5 {[%clk 0:02:32]} 14. Nxe5 {[%clk 0:02:47]}  Be6 {[%clk 0:02:26]} 15. Nc6 {[%clk 0:02:44]}  Qd7 {[%clk 0:02:26]} 16. Ra7 {[%clk 0:02:43]}  Rb7 {[%clk 0:02:01]} 17. Nxe7+ {[%clk 0:02:43]}  Qxe7 {[%clk 0:01:59]} 18. Rxb7 {[%clk 0:02:43]}  Qd6 {[%clk 0:02:00]} 19. Bf4 {[%clk 0:02:40]}  Qa6 {[%clk 0:02:00]} 20. Qa1 {[%clk 0:02:31]}  Ba2 {[%clk 0:01:53]} 21. cxd4 {[%clk 0:02:23]}  cxd4 {[%clk 0:01:46]} 22. Rb8 {[%clk 0:02:16]}  Qa4 {[%clk 0:01:34]} 23. Rxf8+ {[%clk 0:02:01]}  Kxf8 {[%clk 0:01:34]} 24. Rc1 {[%clk 0:02:02]}  g6 {[%clk 0:01:27]} 25. Rc8+ {[%clk 0:01:52]}  Kg7 {[%clk 0:01:24]} 26. Ra8 {[%clk 0:01:52]}  Qb3 {[%clk 0:01:22]} 27. Qxa2 {[%clk 0:01:46]}  Qd1+ {[%clk 0:01:21]} 28. Bf1 {[%clk 0:01:46]}  Ng4 {[%clk 0:01:22]} 29. Qd5 {[%clk 0:01:33]}  Qe1 {[%clk 0:01:07]} 30. Qxd4+ {[%clk 0:01:33]}  f6 {[%clk 0:01:07]} 31. Qd7# {[%clk 0:01:31]} 1-0


[Site "https://www.chess.com"]

[Event "Titled Tuesday Blitz April 4 Early 2023"]
[White "Sreyas Payyappat"]
[Black "Kollars, Dmitrij"]
[WhiteFideId "46674969"]
[BlackFideId "12909572"]
[WhiteElo "2083"]
[BlackElo "2584"]
[Result "0-1"]
[Round "07"]
[TimeControl "180+2"]
[Date "2023.04.04"]
[WhiteClock "0:00:04"]
[BlackClock "0:00:52"]

1. e4 {[%clk 0:03:00]}  e5 {[%clk 0:02:53]} 2. Nf3 {[%clk 0:03:00]}  Nc6 {[%clk 0:02:53]} 3. Bc4 {[%clk 0:03:00]}  Nf6 {[%clk 0:02:52]} 4. d4 {[%clk 0:03:00]}  exd4 {[%clk 0:02:52]} 5. e5 {[%clk 0:03:00]}  Ne4 {[%clk 0:02:52]} 6. O-O {[%clk 0:02:58]}  Be7 {[%clk 0:02:50]} 7. Re1 {[%clk 0:02:43]}  d5 {[%clk 0:02:49]} 8. Bb5 {[%clk 0:02:43]}  O-O {[%clk 0:02:48]} 9. Bxc6 {[%clk 0:02:40]}  bxc6 {[%clk 0:02:49]} 10. Nxd4 {[%clk 0:02:40]}  Bd7 {[%clk 0:02:47]} 11. f3 {[%clk 0:02:37]}  Ng5 {[%clk 0:02:47]} 12. f4 {[%clk 0:02:34]}  Ne4 {[%clk 0:02:46]} 13. Nd2 {[%clk 0:02:33]}  c5 {[%clk 0:02:38]} 14. N4f3 {[%clk 0:02:27]}  Bf5 {[%clk 0:02:31]} 15. Nxe4 {[%clk 0:02:23]}  Bxe4 {[%clk 0:02:32]} 16. Be3 {[%clk 0:02:19]}  d4 {[%clk 0:02:29]} 17. Bf2 {[%clk 0:02:17]}  Qd5 {[%clk 0:02:28]} 18. c3 {[%clk 0:02:11]}  d3 {[%clk 0:02:22]} 19. Re3 {[%clk 0:02:09]}  c4 {[%clk 0:02:19]} 20. Qe1 {[%clk 0:02:06]}  Bg6 {[%clk 0:01:55]} 21. Nd4 {[%clk 0:02:02]}  c5 {[%clk 0:01:51]} 22. Nf3 {[%clk 0:01:57]}  a5 {[%clk 0:01:42]} 23. g4 {[%clk 0:01:22]}  f5 {[%clk 0:01:41]} 24. exf6 {[%clk 0:01:16]}  Bxf6 {[%clk 0:01:41]} 25. f5 {[%clk 0:01:16]}  Bf7 {[%clk 0:01:39]} 26. Qd2 {[%clk 0:00:55]}  Rae8 {[%clk 0:01:29]} 27. Rae1 {[%clk 0:00:54]}  Rxe3 {[%clk 0:01:29]} 28. Rxe3 {[%clk 0:00:54]}  h6 {[%clk 0:01:27]} 29. Bh4 {[%clk 0:00:26]}  Bxh4 {[%clk 0:01:16]} 30. Nxh4 {[%clk 0:00:27]}  a4 {[%clk 0:01:17]} 31. Nf3 {[%clk 0:00:23]}  Rb8 {[%clk 0:01:16]} 32. Ne5 {[%clk 0:00:20]}  Re8 {[%clk 0:01:14]} 33. Nxf7 {[%clk 0:00:14]}  Kxf7 {[%clk 0:01:13]} 34. Rxe8 {[%clk 0:00:14]}  Kxe8 {[%clk 0:01:14]} 35. Kf2 {[%clk 0:00:13]}  Kf7 {[%clk 0:01:11]} 36. Ke3 {[%clk 0:00:05]}  Qe5+ {[%clk 0:01:07]} 37. Kf3 {[%clk 0:00:06]}  h5 {[%clk 0:01:08]} 38. h3 {[%clk 0:00:05]}  h4 {[%clk 0:01:08]} 39. b3 {[%clk 0:00:03]}  cxb3 {[%clk 0:00:48]} 40. axb3 {[%clk 0:00:04]}  a3 {[%clk 0:00:49]} 41. Qxd3 {[%clk 0:00:03]}  Qg3+ {[%clk 0:00:49]} 42. Ke4 {[%clk 0:00:02]}  Qxd3+ {[%clk 0:00:50]} 43. Kxd3 {[%clk 0:00:03]}  a2 {[%clk 0:00:51]} 44. Kc4 {[%clk 0:00:04]}  a1=Q {[%clk 0:00:51]} 45. Kxc5 {[%clk 0:00:04]}  Qxc3+ {[%clk 0:00:52]} 0-1


[Site "https://www.chess.com"]

[Event "Titled Tuesday Blitz April 4 Early 2023"]
[White "Francisco Guecamburu, Candela Be"]
[Black "Gharibyan, Mamikon"]
[WhiteFideId "160911"]
[BlackFideId "13308300"]
[WhiteElo "2326"]
[BlackElo "2445"]
[Result "0-1"]
[Round "07"]
[TimeControl "180+2"]
[Date "2023.04.04"]
[WhiteClock "0:00:09"]
[BlackClock "0:00:57"]

1. e4 {[%clk 0:03:00]}  e5 {[%clk 0:02:59]} 2. Nf3 {[%clk 0:03:01]}  Nc6 {[%clk 0:03:00]} 3. Bb5 {[%clk 0:03:01]}  a6 {[%clk 0:03:00]} 4. Ba4 {[%clk 0:03:01]}  Nf6 {[%clk 0:03:01]} 5. d3 {[%clk 0:03:02]}  b5 {[%clk 0:02:59]} 6. Bb3 {[%clk 0:03:02]}  Bc5 {[%clk 0:03:00]} 7. c3 {[%clk 0:03:01]}  d6 {[%clk 0:03:00]} 8. Bg5 {[%clk 0:02:59]}  h6 {[%clk 0:03:00]} 9. Bh4 {[%clk 0:02:59]}  g5 {[%clk 0:02:59]} 10. Bg3 {[%clk 0:03:00]}  Bb6 {[%clk 0:02:58]} 11. Nbd2 {[%clk 0:03:00]}  Kf8 {[%clk 0:02:52]} 12. Nf1 {[%clk 0:02:57]}  Kg7 {[%clk 0:02:47]} 13. Qe2 {[%clk 0:02:55]}  Nh5 {[%clk 0:02:14]} 14. Nxe5 {[%clk 0:02:37]}  Nxg3 {[%clk 0:02:02]} 15. Nxc6 {[%clk 0:02:37]}  Nxe2 {[%clk 0:02:01]} 16. Nxd8 {[%clk 0:02:37]}  Nf4 {[%clk 0:01:42]} 17. Nxf7 {[%clk 0:02:15]}  Nxd3+ {[%clk 0:01:39]} 18. Kd2 {[%clk 0:02:02]}  Nxf2 {[%clk 0:01:37]} 19. Nxh8 {[%clk 0:02:02]}  Nxh1 {[%clk 0:01:37]} 20. Ne3 {[%clk 0:01:52]}  Nf2 {[%clk 0:01:37]} 21. Nf7 {[%clk 0:01:03]}  Nxe4+ {[%clk 0:01:34]} 22. Ke2 {[%clk 0:01:04]}  c6 {[%clk 0:01:26]} 23. Rf1 {[%clk 0:00:55]}  Ra7 {[%clk 0:01:18]} 24. Nf5+ {[%clk 0:00:43]}  Bxf5 {[%clk 0:01:17]} 25. Rxf5 {[%clk 0:00:44]}  Re7 {[%clk 0:01:14]} 26. Kd1 {[%clk 0:00:35]}  Bc7 {[%clk 0:01:07]} 27. Bc2 {[%clk 0:00:22]}  d5 {[%clk 0:01:05]} 28. Bxe4 {[%clk 0:00:18]}  dxe4 {[%clk 0:01:06]} 29. Nxh6 {[%clk 0:00:16]}  Kxh6 {[%clk 0:01:07]} 30. Rf6+ {[%clk 0:00:16]}  Kh5 {[%clk 0:01:03]} 31. Rxc6 {[%clk 0:00:17]}  Bxh2 {[%clk 0:01:01]} 32. Rxa6 {[%clk 0:00:17]}  Kg4 {[%clk 0:00:59]} 33. Rb6 {[%clk 0:00:15]}  Rd7+ {[%clk 0:00:58]} 34. Ke2 {[%clk 0:00:15]}  Bf4 {[%clk 0:00:58]} 35. Rxb5 {[%clk 0:00:14]}  Rd2+ {[%clk 0:00:58]} 36. Ke1 {[%clk 0:00:14]}  Rxg2 {[%clk 0:00:58]} 37. a4 {[%clk 0:00:15]}  Kf3 {[%clk 0:00:56]} 38. Kd1 {[%clk 0:00:09]}  e3 {[%clk 0:00:57]} 0-1


[Site "https://www.chess.com"]